[Event "Polish University-ch Teams 2024"]
[Site "Lublin"]
[Date "2024.02.25"]
[Round "7.1"]
[White "Janik, Igor"]
[Black "Dzida, Kamil"]
[Result "1-0"]
[ECO "A00"]
[WhiteElo "2499"]
[BlackElo "2403"]
[Annotator "TA"]
[PlyCount "121"]
[EventDate "2024.02.22"]
[EventType "team-tourn"]
[EventCountry "POL"]
[SourceTitle "playchess.com"]
[Source "ChessBase"]
[SourceQuality "1"]
[TimeControl "900+5"]

{[%evp 37,121,66,61,63,70,67,67,62,115,69,105,84,91,82,72,40,70,0,54,0,95,77,145,145,139,108,222,222,203,215,214,207,202,202,343,289,505,482,479,498,497,367,708,735,833,812,1020,544,543,533,518,505,687,685,850,851,1307,1346,1478,1154,1423,1377,29974,6211,4436,1428,29978,29979,29979,29980,29985,29986,29986,29985,29987,29985,29988,29986,29986,29986,29986,29987,29987,29988,29992,29993]} 1. a3 {[%emt 0:00:02]} g6 {[%emt 0:00:04]} 2. d4 {[%emt 0:00:07]} Bg7 {[%emt 0:00:04]} 3. Nf3 {[%emt 0:00:04]} Nf6 {[%emt 0:00:06]} 4. c3 {[%emt 0:00:09]} O-O {[%emt 0:00:05]} 5. Bg5 {[%emt 0:00:02]} d6 {[%emt 0:00:08]} 6. e3 {[%emt 0:00:02] A00: Irregular Openings.} Nc6 $146 {[%emt 0:00:26]} ({Predecessor:} 6... Nbd7 7. Be2 c6 8. O-O Re8 9. Nbd2 Qc7 10. Rc1 e5 11. dxe5 dxe5 12. Qa4 h6 13. Bxf6 Nxf6 {0-1 Ivanov,O-Khrinovskyi,O (2106) Shepetivka op 2011 (1)}) 7. Be2 {[%emt 0:00:02]} e5 {[%emt 0:00:14]} 8. O-O {[%emt 0:00:03]} h6 {[%emt 0:00:49]} 9. Bh4 {[%emt 0:00:01]} Qe8 {[%emt 0:00:19]} 10. Nbd2 {[%emt 0:00:09]} Nd7 {[%emt 0:00:02]} 11. dxe5 {[%emt 0:00:17]} dxe5 {[%emt 0:00:25]} 12. e4 {[%emt 0:00:04]} Nc5 {[%emt 0:00:10]} 13. b4 {[%emt 0:00:06]} Ne6 {[%emt 0:00:02]} 14. Bc4 {[%emt 0:00:06]} Kh7 {[%emt 0:00:33]} 15. Re1 {[%emt 0:00:08]} g5 {[%emt 0:00:02]} 16. Bg3 {[%emt 0:00:01]} f6 {[%emt 0:00:01]} 17. Nf1 {[%emt 0:00:13]} Nf4 {[%emt 0:00:35]} 18. Ne3 {[%emt 0:00:03]} Bd7 {[%emt 0:01:04]} 19. Qb3 {[%emt 0:00:09]} Ne7 {[%emt 0:00:29]} 20. a4 {[%emt 0:00:53]} Rd8 {[%emt 0:00:02]} 21. a5 {[%emt 0:00:25]} a6 {[%emt 0:00:09]} 22. Rad1 {[%emt 0:00:11]} Qh5 {[%emt 0:00:44]} (22... Bc8 $14) 23. Bxf4 {[%emt 0:00:19]} (23. Rd2 $16) 23... exf4 {[%emt 0:00:21]} 24. Nd5 {[%emt 0:00:04]} Nxd5 {[%emt 0:00:31]} 25. exd5 {[%emt 0:00:04]} Bg4 {[%emt 0:00:31]} 26. Qc2+ {[%emt 0:00:05]} f5 {[%emt 0:00:50]} 27. Be2 {[%emt 0:00:02]} (27. Rd3 $1 $14) 27... Qg6 {[%emt 0:01:29]} (27... Bxf3 $1 $11 28. Bxf3 g4) 28. h3 {[%emt 0:00:48]} ({White should play} 28. c4 $14) 28... Bh5 {[%emt 0:00:02]} (28... Bxf3 $1 $11 {keeps the balance.} 29. Bxf3 h5) 29. c4 {[%emt 0:00:01]} Kh8 {[%emt 0:02:39]} ({Better is} 29... Bxf3 30. Bxf3 h5) 30. Nd4 $16 {[%emt 0:01:01]} Bxd4 {[%emt 0:00:08]} 31. Rxd4 {[%emt 0:00:08]} Rfe8 {[%emt 0:00:13]} (31... Qf6 $16 32. Red1 Bxe2 33. Qxe2 Rfe8) 32. Rdd1 $18 {[%emt 0:00:01]} Bxe2 {[%emt 0:00:16]} 33. Rxe2 {[%emt 0:00:02]} Rxe2 {[%emt 0:00:08]} 34. Qxe2 {[%emt 0:00:02]} Re8 {[%emt 0:00:01]} 35. Qd3 {[%emt 0:00:08]} Qf6 {[%emt 0:01:43]} (35... Kh7 {keeps fighting.} 36. b5 axb5 37. cxb5 Qf7) 36. c5 $18 {[%emt 0:00:07]} Kg7 $2 {[%emt 0:00:07]} (36... g4 {was worth a try.} 37. d6 cxd6 38. cxd6 Rd8) 37. d6 $18 {[%emt 0:00:06]} cxd6 {[%emt 0:00:01]} 38. cxd6 {[%emt 0:00:02]} Rd8 {[%emt 0:00:14]} 39. d7 {[%emt 0:00:01]} Qe6 $2 {[%emt 0:00:19]} (39... g4 40. b5 h5) 40. Qc3+ $18 {[%emt 0:00:09]} Kf7 {[%emt 0:00:18] [#]} 41. Qc7 $1 {[%emt 0:00:06]} Ke7 {[%emt 0:00:43]} 42. Qxb7 {[%emt 0:00:48]} Rxd7 {[%emt 0:00:01]} 43. Rxd7+ {[%emt 0:00:02]} Qxd7 {[%emt 0:00:00]} 44. Qxa6 {[%emt 0:00:01]} Qd2 {[%emt 0:00:02]} 45. Qb7+ {[%emt 0:00:12]} Kf6 {[%emt 0:00:56]} 46. Qb6+ {[%emt 0:00:01]} Kg7 {[%emt 0:00:01]} 47. a6 {[%emt 0:00:12]} g4 {[%emt 0:00:02]} 48. hxg4 {[%emt 0:00:08]} fxg4 {[%emt 0:00:08]} 49. Kh2 {[%emt 0:00:59]} f3 {[%emt 0:00:37]} 50. Qc7+ {[%emt 0:00:56]} (50. a7 $142 g3+ 51. Kxg3 Qg5+ 52. Kxf3 Qd5+ 53. Ke3 Qb3+ 54. Kf4 Qc4+ 55. Ke5 Qe2+ 56. Kd6) 50... Kg6 $18 {[%emt 0:00:08]} 51. Qg3 {[%emt 0:00:03]} (51. Qc5 $142 g3+ 52. Kxg3 fxg2 53. Kxg2) 51... Kf5 {[%emt 0:00:08]} 52. gxf3 {[%emt 0:00:04]} h5 {[%emt 0:00:03]} 53. a7 {[%emt 0:00:22]} Qd5 {[%emt 0:00:17]} 54. fxg4+ {[%emt 0:00:15]} hxg4 {[%emt 0:00:00]} 55. b5 {[%emt 0:00:16]} Qb7 {[%emt 0:00:00]} 56. b6 {[%emt 0:00:03]} Qd5 {[%emt 0:00:00]} 57. Qe3 {[%emt 0:00:08]} Qd6+ {[%emt 0:00:00]} 58. Kg1 {[%emt 0:00:08]} Qd1+ {[%emt 0:00:01]} 59. Kg2 {[%emt 0:00:07]} Qd5+ {[%emt 0:00:03]} 60. f3 {[%emt 0:00:14]} Qc6 {[%emt 0:00:08]} 61. Qe4+ {[%emt 0:00:02]} 1-0

[Event "Polish University-ch Teams 2024"]
[Site "Lublin"]
[Date "2024.02.25"]
[Round "7.2"]
[White "Klepek, Witold"]
[Black "Kowalski, Igor"]
[Result "0-1"]
[ECO "B06"]
[WhiteElo "2262"]
[BlackElo "2372"]
[Annotator "RC"]
[PlyCount "78"]
[EventDate "2024.02.22"]
[EventType "team-tourn"]
[EventCountry "POL"]
[SourceTitle "playchess.com"]
[Source "ChessBase"]
[SourceQuality "1"]
[TimeControl "900+5"]

1. e4 {[%emt 0:00:02]} g6 {[%emt 0:00:05]} 2. d4 {[%emt 0:00:02]} Bg7 {[%emt 0:00:01]} 3. Nc3 {[%emt 0:00:08]} d6 {[%emt 0:00:01]} 4. Be3 {[%emt 0:00:07]} a6 {[%emt 0:00:02]} 5. Qd2 {[%emt 0:00:31]} b5 {[%emt 0:00:04]} 6. a3 {[%emt 0:00:06]} Bb7 {[%emt 0:00:01]} 7. f3 {[%emt 0:00:01]} Nd7 {[%emt 0:00:06]} 8. h4 {[%emt 0:00:03]} h6 {[%emt 0:00:09]} 9. Nge2 {[%emt 0:01:21]} Rc8 {[%emt 0:00:03]} 10. d5 {[%emt 0:00:28]} c5 {[%emt 0:00:05]} 11. dxc6 {[%emt 0:00:03]} Bxc6 {[%emt 0:00:01]} 12. Nd4 {[%emt 0:00:06]} Bb7 {[%emt 0:00:02]} 13. O-O-O {[%emt 0:00:29]} Nb6 {[%emt 0:00:06]} 14. g4 {[%emt 0:01:45]} Nf6 {[%emt 0:00:38]} 15. h5 {[%emt 0:00:17]} e5 {[%emt 0:01:13]} 16. hxg6 {[%emt 0:02:16]} exd4 {[%emt 0:00:07]} 17. gxf7+ {[%emt 0:00:01]} Kxf7 18. Bxd4 Nc4 {[%emt 0:00:17]} 19. Qf4 {[%emt 0:00:29]} Qe7 {[%emt 0:00:11]} 20. Kb1 {[%emt 0:01:05]} Ne5 {[%emt 0:03:11]} 21. Bh3 {[%emt 0:01:23]} Rc4 {[%emt 0:00:57]} 22. b3 {[%emt 0:01:39]} Ng6 {[%emt 0:01:27]} 23. Qe3 {[%emt 0:00:21]} Rxd4 {[%emt 0:00:30]} 24. Rxd4 {[%emt 0:00:38]} Qe5 {[%emt 0:00:11]} 25. Ne2 {[%emt 0:01:37]} Nd5 {[%emt 0:00:14]} 26. f4 {[%emt 0:01:23]} Nxe3 {[%emt 0:00:21]} 27. fxe5 {[%emt 0:00:02]} Bxe5 {[%emt 0:00:01]} 28. Rd2 {[%emt 0:00:29]} Bxe4 {[%emt 0:00:02]} 29. Re1 {[%emt 0:00:08]} Rc8 {[%emt 0:00:53]} 30. Nd4 {[%emt 0:00:01]} Rc3 {[%emt 0:02:30]} 31. Kb2 {[%emt 0:00:04]} Rxc2+ {[%emt 0:00:49]} 32. Rxc2 {[%emt 0:00:06]} Nxc2 {[%emt 0:00:01]} 33. Rxe4 {[%emt 0:00:07]} Nxd4 {[%emt 0:00:01]} 34. Ka2 {[%emt 0:00:15]} Kf6 {[%emt 0:00:06]} 35. Bf1 {[%emt 0:00:04]} Nf4 {[%emt 0:00:10]} 36. a4 {[%emt 0:00:01]} bxa4 {[%emt 0:00:16]} 37. b4 {[%emt 0:00:00]} Nb5 {[%emt 0:00:17]} 38. Rc4 {[%emt 0:00:05]} Nd5 {[%emt 0:00:06]} 39. Kb1 {[%emt 0:00:11]} Na3+ {[%emt 0:00:05]} 0-1

[Event "Polish University-ch Teams 2024"]
[Site "Lublin"]
[Date "2024.02.25"]
[Round "7.3"]
[White "Molenda, Marcin"]
[Black "Golenia, Jan"]
[Result "1-0"]
[ECO "E15"]
[WhiteElo "2377"]
[BlackElo "2221"]
[Annotator "TA"]
[PlyCount "115"]
[EventDate "2024.02.22"]
[EventType "team-tourn"]
[EventCountry "POL"]
[SourceTitle "playchess.com"]
[Source "ChessBase"]
[SourceQuality "1"]
[TimeControl "900+5"]

{[%evp 21,114,0,15,20,11,20,10,12,15,12,51,58,77,78,68,52,102,112,123,19,27,30,154,140,179,179,175,185,218,198,201,216,212,175,190,114,115,115,115,118,135,136,145,132,168,168,175,158,271,271,271,229,271,271,316,268,306,299,312,311,327,326,354,354,307,252,248,262,260,250,254,270,268,245,381,385,407,395,712,706,1245,1238,1074,1062,5700,5194,29979,29980,29989,29990,29991,29992,29997,29998,29999]} 1. d4 {[%emt 0:00:01]} Nf6 {[%emt 0:00:02]} 2. c4 {[%emt 0:00:01]} e6 {[%emt 0:00:01]} 3. Nf3 {[%emt 0:00:04]} b6 {[%emt 0:00:01]} 4. g3 {[%emt 0:00:02]} Ba6 {[%emt 0:00:02]} 5. b3 {[%emt 0:00:03]} d5 {[%emt 0:00:30]} 6. Bg2 {[%emt 0:00:58]} Bb4+ {[%emt 0:00:01]} 7. Bd2 {[%emt 0:00:15]} Be7 {[%emt 0:00:21]} 8. Qc2 {[%emt 0:00:24]} O-O {[%emt 0:01:14]} 9. O-O {[%emt 0:00:07]} c5 {[%emt 0:00:48] 9...c5 punktet besser als 9...c6. E15: Damenindisch (Hauptfortsetzung, Abweichungen).} 10. dxc5 {[%emt 0:00:37]} bxc5 {[%emt 0:00:20]} 11. Ne5 {[%emt 0:01:28]} Bb7 {[%emt 0:00:18]} 12. Nc3 {[%emt 0:00:16]} Nbd7 {[%emt 0:04:08]} 13. Nd3 $146 {[%emt 0:00:37]} ({Predecessor:} 13. Nxd7 Qxd7 14. cxd5 exd5 15. Rfd1 Rfd8 16. Rac1 h6 17. Qd3 Qe6 18. Qb5 Ba6 19. Qa5 {0-1 Spalir,J (2346)-Bartos,J (2240) Pardubice Czech op-A 26th 2015 (7)}) 13... Qc7 {[%emt 0:00:43]} 14. cxd5 {[%emt 0:00:01]} exd5 {[%emt 0:00:28]} 15. Bf4 {[%emt 0:00:02]} Qa5 {[%emt 0:00:49]} 16. Ne5 {[%emt 0:00:38]} Rfd8 {[%emt 0:00:24]} 17. Rad1 {[%emt 0:00:35]} Nf8 {[%emt 0:00:05]} 18. Bg5 {[%emt 0:01:05]} Rab8 {[%emt 0:02:46]} (18... Qc7 $14 19. Bxf6 gxf6 (19... Bxf6 20. Nxd5 Bxd5 21. Rxd5 $16)) 19. Ng4 $1 $16 {[%emt 0:00:41]} N8d7 {[%emt 0:02:04]} 20. Nxf6+ {[%emt 0:00:58]} (20. Nxd5 $6 Nxd5 21. Bxe7 (21. Rxd5 Bxd5 22. Bxe7 Re8 $11) 21... Nxe7 $11) ({Besser ist} 20. Bxf6 $16 Nxf6 21. Nxf6+ Bxf6 22. Nxd5) 20... Bxf6 $11 {[%emt 0:00:04]} 21. Bd2 {[%emt 0:01:11]} Qa6 {[%emt 0:00:19]} (21... d4 $1 $11 22. Nd5 Qa6) 22. Bf4 {[%emt 0:00:22]} (22. Nxd5 Bxd5 23. Bxd5 Nb6 $18) 22... Be5 {[%emt 0:00:53]} 23. Bxe5 {[%emt 0:00:14]} (23. Bxd5 Bxf4 24. gxf4 Nf6 25. Bxb7 Qxb7 $16) 23... Nxe5 {[%emt 0:00:01]} 24. Nxd5 {[%emt 0:00:02]} c4 {[%emt 0:00:20]} 25. bxc4 {[%emt 0:00:39]} Qxc4 {[%emt 0:00:11]} 26. Ne7+ {[%emt 0:02:22]} Kf8 {[%emt 0:00:01] [#]} 27. Rxd8+ $1 {[%emt 0:00:03]} (27. Qxh7 Kxe7 28. Rxd8 Kxd8) 27... Rxd8 {[%emt 0:00:02]} 28. Qxc4 {[%emt 0:00:01]} (28. Qxh7 $18 {Nf5 ist eine echte Drohung.} Kxe7 (28... Bxg2 $2 29. Nf5 $18) 29. Bxb7) 28... Nxc4 $16 {[%emt 0:00:01]} 29. Bxb7 {[%emt 0:00:07]} Kxe7 {[%emt 0:00:02]} 30. Rc1 {[%emt 0:00:06]} Nd6 {[%emt 0:00:16]} 31. Bd5 {[%emt 0:00:39]} Rd7 {[%emt 0:00:03]} 32. e4 {[%emt 0:00:06]} Kf6 {[%emt 0:00:09]} 33. f4 {[%emt 0:00:03]} Ke7 {[%emt 0:00:12]} 34. Kf2 {[%emt 0:00:09]} f5 {[%emt 0:00:08]} (34... h5 $16 35. Rc5 Nb7) 35. e5 $18 {[%emt 0:00:44]} Ne8 {[%emt 0:00:01]} 36. Rd1 {[%emt 0:00:11]} Rc7 {[%emt 0:00:01]} 37. Bb3 {[%emt 0:00:02]} Rc3 {[%emt 0:00:09]} 38. Ke2 {[%emt 0:00:06]} Nc7 {[%emt 0:00:02]} 39. Rd6 {[%emt 0:00:31]} Nb5 {[%emt 0:00:02]} 40. Ra6 {[%emt 0:00:23]} Rc7 {[%emt 0:00:04]} 41. Kd3 {[%emt 0:00:13]} Rc3+ {[%emt 0:00:01]} 42. Kd2 {[%emt 0:00:02]} Rc7 {[%emt 0:00:01]} 43. Bc2 {[%emt 0:00:18]} (43. Re6+ Kf8 44. Bd1 Rd7+ 45. Ke1 Rc7 $18) 43... Nd4 {[%emt 0:00:01]} 44. Bd3 {[%emt 0:00:05]} g6 {[%emt 0:00:09]} 45. h3 {[%emt 0:00:14]} Ne6 {[%emt 0:00:03]} 46. Ke3 {[%emt 0:00:25]} Nc5 {[%emt 0:00:10]} 47. Ra5 {[%emt 0:00:03]} Ne6 {[%emt 0:00:09]} (47... a6 $142 48. Ra3 (48. Bxa6 Nxa6 49. Rxa6 Rc3+ 50. Kf2 Rc2+ 51. Ke1 Rc3 $16) 48... Nxd3) 48. g4 $18 {[%emt 0:00:06]} fxg4 {[%emt 0:00:09]} 49. hxg4 {[%emt 0:00:01]} Rd7 $2 {[%emt 0:00:01]} (49... Nc5 50. Be2 h6) 50. f5 $18 {[%emt 0:00:05]} Nc7 {[%emt 0:00:12]} 51. f6+ {[%emt 0:00:08]} ({Schwächer ist} 51. Rxa7 Nd5+ 52. Kd4 Rxa7 $11) 51... Kf8 {[%emt 0:00:08]} 52. Bc4 {[%emt 0:00:03]} (52. Rxa7 Nd5+ 53. Kd4 Rxa7 $18) 52... Ne8 {[%emt 0:00:08]} 53. g5 {[%emt 0:00:05]} Rc7 {[%emt 0:00:01]} 54. Kd4 {[%emt 0:00:07]} Rd7+ {[%emt 0:00:01]} 55. Rd5 {[%emt 0:00:02]} Rb7 {[%emt 0:00:01]} 56. e6 {[%emt 0:00:06]} Rb1 {[%emt 0:00:03]} 57. e7+ {[%emt 0:00:01]} Kf7 {[%emt 0:00:03]} 58. Rd8# {[%emt 0:00:02]} 1-0

[Event "Polish University-ch Teams 2024"]
[Site "Lublin"]
[Date "2024.02.25"]
[Round "7.4"]
[White "Golenia, Wojciech"]
[Black "Jarzebowski, Kacper"]
[Result "1-0"]
[ECO "A25"]
[WhiteElo "2212"]
[BlackElo "2135"]
[Annotator "ChessBase"]
[PlyCount "105"]
[EventDate "2024.02.22"]
[EventType "team-tourn"]
[EventCountry "POL"]
[SourceTitle "playchess.com"]
[Source "ChessBase"]
[SourceQuality "1"]
[TimeControl "900+5"]

1. c4 {[%emt 0:00:02]} e5 {[%emt 0:00:01]} 2. Nc3 {[%emt 0:00:03]} Nc6 {[%emt 0:00:01]} 3. g3 {[%emt 0:00:03]} Nf6 {[%emt 0:00:02]} 4. Bg2 {[%emt 0:00:02]} g6 {[%emt 0:00:02]} 5. e3 {[%emt 0:00:20]} Bg7 {[%emt 0:00:01]} 6. Nge2 {[%emt 0:00:16]} O-O {[%emt 0:00:03]} 7. d3 {[%emt 0:00:43]} d6 {[%emt 0:00:02]} 8. O-O {[%emt 0:00:32]} Re8 {[%emt 0:00:01]} 9. Rb1 {[%emt 0:00:42]} a5 {[%emt 0:00:02]} 10. a3 {[%emt 0:00:21]} Bf5 {[%emt 0:00:04]} 11. e4 {[%emt 0:01:04]} Bc8 {[%emt 0:00:32]} 12. f4 {[%emt 0:00:27]} Nd4 {[%emt 0:02:12]} 13. h3 {[%emt 0:02:43]} c6 {[%emt 0:00:59]} 14. Nxd4 {[%emt 0:01:04]} exd4 {[%emt 0:00:01]} 15. Ne2 {[%emt 0:00:12]} Nd7 {[%emt 0:00:02]} 16. g4 {[%emt 0:01:20]} a4 {[%emt 0:00:21]} 17. b4 {[%emt 0:01:17]} axb3 {[%emt 0:00:03]} 18. Qxb3 {[%emt 0:00:38]} Nc5 {[%emt 0:00:02]} 19. Qc2 {[%emt 0:00:22]} Qh4 {[%emt 0:04:46]} 20. Bd2 {[%emt 0:02:10]} Rxa3 {[%emt 0:01:59]} 21. Be1 {[%emt 0:00:01]} Qd8 {[%emt 0:00:10]} 22. Bb4 {[%emt 0:00:02]} Ra8 {[%emt 0:00:25]} 23. e5 {[%emt 0:00:01]} Bf8 {[%emt 0:00:29]} 24. Bxc5 {[%emt 0:00:48]} dxc5 {[%emt 0:00:01]} 25. Ng3 {[%emt 0:00:05]} f6 {[%emt 0:00:48]} 26. Ne4 {[%emt 0:00:21]} fxe5 {[%emt 0:00:06]} 27. f5 {[%emt 0:00:31]} Bh6 {[%emt 0:00:27]} 28. f6 {[%emt 0:00:19]} Be3+ {[%emt 0:00:06]} 29. Kh1 {[%emt 0:00:01]} Rf8 {[%emt 0:00:24]} 30. Qe2 {[%emt 0:00:26]} Bf4 {[%emt 0:00:34]} 31. g5 {[%emt 0:00:14]} Rf7 {[%emt 0:01:15]} 32. h4 {[%emt 0:00:09]} Qd7 {[%emt 0:00:41]} 33. Nxc5 {[%emt 0:00:02]} Qg4 {[%emt 0:00:20]} 34. Qxg4 {[%emt 0:00:18]} Bxg4 {[%emt 0:00:03]} 35. Bf3 {[%emt 0:00:09]} Bf5 {[%emt 0:00:10]} 36. Be4 {[%emt 0:00:05]} Bh3 {[%emt 0:00:11]} 37. Rxf4 {[%emt 0:00:08]} exf4 {[%emt 0:00:04]} 38. Kh2 {[%emt 0:00:06]} Bc8 {[%emt 0:00:13]} 39. Rb2 {[%emt 0:00:03]} Rc7 {[%emt 0:00:16]} 40. Kg2 {[%emt 0:00:03]} Kf7 {[%emt 0:00:08]} 41. Kf3 {[%emt 0:00:02]} Ra5 {[%emt 0:00:04]} 42. Nb3 {[%emt 0:00:02]} Ra4 {[%emt 0:00:06]} 43. Nxd4 {[%emt 0:00:04]} Ra3 {[%emt 0:00:08]} 44. Kxf4 {[%emt 0:00:02]} Bf5 {[%emt 0:00:02]} 45. Nxf5 {[%emt 0:00:08]} gxf5 {[%emt 0:00:02]} 46. Bxf5 {[%emt 0:00:08]} Ra1 {[%emt 0:00:04]} 47. Bxh7 {[%emt 0:00:07]} Rf1+ {[%emt 0:00:02]} 48. Ke5 {[%emt 0:00:01]} Rd7 {[%emt 0:00:08]} 49. g6+ {[%emt 0:00:05]} Kf8 {[%emt 0:00:03]} 50. g7+ {[%emt 0:00:02]} Rxg7 {[%emt 0:00:01]} 51. fxg7+ {[%emt 0:00:01]} Kxg7 {[%emt 0:00:01]} 52. Rxb7+ {[%emt 0:00:02]} Kh6 {[%emt 0:00:03]} 53. Be4 {[%emt 0:00:03]} 1-0

[Event "Polish University-ch Teams 2024"]
[Site "Lublin"]
[Date "2024.02.25"]
[Round "7.5"]
[White "Antolak, Julia"]
[Black "Musial, Tomasz"]
[Result "1/2-1/2"]
[ECO "A40"]
[WhiteElo "2309"]
[BlackElo "2171"]
[Annotator "TA"]
[PlyCount "100"]
[EventDate "2024.02.22"]
[EventType "team-tourn"]
[EventCountry "POL"]
[SourceTitle "playchess.com"]
[Source "ChessBase"]
[SourceQuality "1"]
[TimeControl "900+5"]

{[%evp 14,100,0,0,0,-162,-68,-60,0,0,0,0,0,0,0,0,0,0,0,0,0,-33,-18,-42,-36,-33,-31,-67,-8,-82,-89,-93,-43,-39,-23,-31,-34,-125,-102,-125,0,-117,-117,-117,-117,-135,-96,-96,-96,-227,-83,-129,-71,-102,-71,-64,-70,-68,-65,-77,-91,-79,-13,-40,0,0,14,0,0,0,0,0,0,0,0,0,0,-91,0,0,0,0,0,0,0,0,0,0,0]} 1. d4 {[%emt 0:00:03]} e6 {[%emt 0:00:01]} 2. c4 {[%emt 0:00:02]} b6 {[%emt 0:00:01]} 3. Nc3 {[%emt 0:00:04]} Bb7 {[%emt 0:00:02]} 4. e4 {[%emt 0:00:02]} Bb4 {[%emt 0:00:02]} 5. Bd3 {[%emt 0:00:01]} f5 {[%emt 0:00:05]} 6. Qh5+ {[%emt 0:00:45]} g6 {[%emt 0:00:03]} 7. Qe2 {[%emt 0:00:01]} Nf6 {[%emt 0:00:59]} 8. Bg5 {[%emt 0:01:24] And now e5 would win.} (8. exf5 Bxg2 (8... Bxc3+ $2 9. bxc3 Bxg2 10. Nf3 $19) 9. fxg6 Qe7 $15 (9... Bxh1 $2 10. Bg5 $19)) 8... fxe4 {[%emt 0:00:12]} 9. Bxf6 $2 {[%emt 0:00:01]} (9. Bxe4 $11 {and White has nothing to worry.} Bxe4 10. Bxf6 Qxf6 11. Qxe4) 9... Qxf6 {[%emt 0:00:57]} (9... exd3 $19 10. Qe5 Nc6) 10. Bxe4 $15 {[%emt 0:00:03]} Bxe4 {[%emt 0:00:05]} (10... Nc6 $1 $15 11. Nf3 Nxd4 12. Nxd4 Qxd4) 11. Qxe4 $11 {[%emt 0:00:01]} Nc6 {[%emt 0:00:02]} 12. Nf3 {[%emt 0:00:06]} Bxc3+ {[%emt 0:00:15]} 13. bxc3 {[%emt 0:00:02]} O-O {[%emt 0:00:06]} 14. O-O {[%emt 0:00:19]} Qf4 {[%emt 0:03:11]} 15. Rae1 {[%emt 0:00:14]} Qxe4 {[%emt 0:00:13]} 16. Rxe4 {[%emt 0:00:01]} Rf5 {[%emt 0:00:16]} 17. Rfe1 {[%emt 0:00:39]} Raf8 {[%emt 0:00:17]} 18. R1e2 {[%emt 0:00:01]} Ra5 {[%emt 0:00:39]} 19. h4 {[%emt 0:00:36]} Rff5 {[%emt 0:00:41]} 20. Rd2 {[%emt 0:02:47]} Kf8 {[%emt 0:03:44]} (20... Ra4 $15 21. Ne5 Nxe5 22. dxe5 Rf7) 21. Kh2 {[%emt 0:00:35]} (21. Ng5 $1 $11) 21... Ra4 $17 {[%emt 0:00:25]} 22. Ne5 {[%emt 0:00:20]} Nxe5 {[%emt 0:00:04]} (22... d5 $17 23. cxd5 Nxe5 (23... exd5 24. Nd7+ Kg7 25. Re3 $11) 24. Rxe5 Rxe5 (24... exd5 25. Rxf5+ gxf5 26. Re2 $11) 25. dxe5 exd5) 23. dxe5 {[%emt 0:00:01][%mdl 4096] Endgame. KRR-KRR} Ke8 {[%emt 0:00:08]} 24. Red4 {[%emt 0:00:38]} Rf7 {[%emt 0:00:02]} ({Of course not} 24... Rxe5 25. Rxd7 $11) 25. g3 {[%emt 0:01:29]} ({White should try} 25. c5 $15 Rxd4 26. cxd4) 25... Ra3 $36 {[%emt 0:00:18][%mdl 2048] Black has strong initiative.} 26. R4d3 {[%emt 0:00:01]} Ra4 {[%emt 0:00:01]} 27. Rd4 {[%emt 0:00:01][%cal Oc4c5] [#]} c5 $1 {[%emt 0:01:39]} 28. R4d3 {[%emt 0:00:01]} Rxc4 {[%emt 0:00:05]} 29. f4 {[%emt 0:00:00]} h5 {[%emt 0:00:07]} 30. Kg2 {[%emt 0:00:24]} Kd8 {[%emt 0:00:06]} 31. Kf2 {[%emt 0:00:40] [#]} (31. Rc2 $17) 31... Kc7 {[%emt 0:00:10]} (31... d5 $1 $19 {is more deadly. Hoping for ...Kc7.} 32. exd6 e5) 32. Ke2 {[%emt 0:00:03]} (32. Ke1 $142) 32... Ra4 {[%emt 0:00:09]} (32... d6 $142 33. Rxd6 Rxc3) 33. Kd1 {[%emt 0:00:06]} Ra3 {[%emt 0:00:56]} 34. Kc1 {[%emt 0:00:11]} c4 {[%emt 0:00:08]} 35. Re3 {[%emt 0:00:01]} b5 {[%emt 0:00:05]} 36. Kb2 {[%emt 0:00:21]} Ra6 {[%emt 0:00:02]} 37. Re4 {[%emt 0:00:27]} Rc6 {[%emt 0:00:05]} ({Better is} 37... Rf8 $17) 38. Red4 {[%emt 0:00:07][%cal Oa2a4]} (38. a4 $5) 38... a5 {[%emt 0:00:29]} 39. a4 {[%emt 0:00:45]} b4 {[%emt 0:00:43]} 40. Re2 {[%emt 0:00:01]} Rf8 {[%emt 0:00:33]} 41. Ree4 {[%emt 0:00:07]} bxc3+ {[%emt 0:00:04]} 42. Kxc3 {[%emt 0:00:01]} Rc8 {[%emt 0:00:04]} 43. Rxc4 {[%emt 0:00:35]} Kb6 {[%emt 0:00:02]} 44. Rxc6+ {[%emt 0:01:21]} Rxc6+ $11 {[%emt 0:00:01] KR-KR} 45. Kb3 {[%emt 0:00:00]} (45. Rc4 $11) 45... Rc1 {[%emt 0:00:05]} (45... Kc5 $17 {Strongly threatening ...Kd5.} 46. Re1 Rb6+ 47. Kc3 Rb4) 46. Rd4 {[%emt 0:00:06] The position is equal.} Kc7 {[%emt 0:00:05]} 47. Rc4+ {[%emt 0:01:49]} Rxc4 {[%emt 0:00:02]} 48. Kxc4 {[%emt 0:00:01] White wants to mate with Kb5.} Kc6 {[%emt 0:00:02]} 49. Kd4 {[%emt 0:00:01]} Kb6 {[%emt 0:00:01]} 50. Kc4 {[%emt 0:00:01]} Kc6 {[%emt 0:00:21] Weighted Error Value: White=0.30/Black=0.24 (precise) .  Loses game:     	White=1     	---        Mistake:       	White=5     	Black=8      Inaccurate:     	White=4     	Black=2      OK:         	White=14    	Black=18     Best:        	White=4     	Black=2} 1/2-1/2